[Event "Early Titled Tuesday Blitz | February 8 2022"]
[White "San, Thit Lwin"]
[Black "Maze, Sebastien"]
[WhiteFideId "13001272"]
[BlackFideId "613762"]
[WhiteElo "2232"]
[BlackElo "2462"]
[Result "0-1"]
[Round "04"]
[TimeControl "180+1"]
[Date "2022.02.08"]
[WhiteClock "0:00:09"]
[BlackClock "0:00:58"]

1. Nf3 {[%clk 0:03:00]}  Nf6 {[%clk 0:02:58]} 2. c4 {[%clk 0:03:00]}  g6 {[%clk 0:02:58]} 3. Nc3 {[%clk 0:03:01]}  Bg7 {[%clk 0:02:59]} 4. e4 {[%clk 0:03:01]}  O-O {[%clk 0:03:00]} 5. d4 {[%clk 0:03:02]}  d6 {[%clk 0:03:01]} 6. Be2 {[%clk 0:03:03]}  Na6 {[%clk 0:03:01]} 7. O-O {[%clk 0:03:03]}  e5 {[%clk 0:03:01]} 8. Be3 {[%clk 0:02:53]}  c6 {[%clk 0:02:59]} 9. Qc2 {[%clk 0:02:44]}  Ng4 {[%clk 0:02:58]} 10. Bg5 {[%clk 0:02:43]}  Qe8 {[%clk 0:02:57]} 11. d5 {[%clk 0:02:33]}  h6 {[%clk 0:02:53]} 12. Bd2 {[%clk 0:02:32]}  f5 {[%clk 0:02:53]} 13. Rad1 {[%clk 0:02:21]}  c5 {[%clk 0:02:52]} 14. a3 {[%clk 0:02:20]}  f4 {[%clk 0:02:51]} 15. Nb5 {[%clk 0:02:16]}  Qe7 {[%clk 0:02:50]} 16. b4 {[%clk 0:02:16]}  g5 {[%clk 0:02:48]} 17. Ne1 {[%clk 0:02:05]}  Nf6 {[%clk 0:02:46]} 18. Nd3 {[%clk 0:01:57]}  Nxe4 {[%clk 0:02:41]} 19. f3 {[%clk 0:01:08]}  Nxd2 {[%clk 0:02:34]} 20. Qxd2 {[%clk 0:01:08]}  e4 {[%clk 0:02:22]} 21. fxe4 {[%clk 0:01:07]}  Nc7 {[%clk 0:02:19]} 22. Nxc7 {[%clk 0:01:04]}  Qxc7 {[%clk 0:02:18]} 23. bxc5 {[%clk 0:01:04]}  Bd4+ {[%clk 0:02:18]} 24. Kh1 {[%clk 0:01:03]}  dxc5 {[%clk 0:02:18]} 25. e5 {[%clk 0:00:44]}  Bf5 {[%clk 0:02:16]} 26. d6 {[%clk 0:00:40]}  Qg7 {[%clk 0:02:11]} 27. Bf3 {[%clk 0:00:38]}  Be3 {[%clk 0:02:02]} 28. Qc3 {[%clk 0:00:35]}  Rae8 {[%clk 0:02:02]} 29. Bd5+ {[%clk 0:00:33]}  Kh8 {[%clk 0:02:01]} 30. Rb1 {[%clk 0:00:29]}  b6 {[%clk 0:02:01]} 31. Bc6 {[%clk 0:00:21]}  Bxd3 {[%clk 0:01:51]} 32. Bxe8 {[%clk 0:00:20]}  Bxb1 {[%clk 0:01:47]} 33. d7 {[%clk 0:00:18]}  Qe7 {[%clk 0:01:42]} 34. Rxb1 {[%clk 0:00:18]}  Bd4 {[%clk 0:01:39]} 35. Qe1 {[%clk 0:00:17]}  f3 {[%clk 0:01:35]} 36. gxf3 {[%clk 0:00:15]}  Rxf3 {[%clk 0:01:35]} 37. e6 {[%clk 0:00:14]}  Re3 {[%clk 0:01:30]} 38. Qf1 {[%clk 0:00:14]}  Rxe6 {[%clk 0:01:29]} 39. Qf7 {[%clk 0:00:12]}  Re1+ {[%clk 0:01:12]} 40. Kg2 {[%clk 0:00:12]}  Qe4+ {[%clk 0:00:59]} 41. Kh3 {[%clk 0:00:09]}  Re3+ {[%clk 0:00:58]} 0-1


[Site "https://www.chess.com"]

[Event "Early Titled Tuesday Blitz | February 8 2022"]
[White "Saravana, Krishnan P."]
[Black "Alekseev, Evgeny"]
[WhiteFideId "5018382"]
[BlackFideId "4138147"]
[WhiteElo "2210"]
[BlackElo "2589"]
[Result "0-1"]
[Round "04"]
[TimeControl "180+1"]
[Date "2022.02.08"]
[WhiteClock "0:00:36"]
[BlackClock "0:00:18"]

1. d4 {[%clk 0:03:00]}  Nf6 {[%clk 0:02:59]} 2. c4 {[%clk 0:03:00]}  e6 {[%clk 0:02:59]} 3. Nf3 {[%clk 0:03:01]}  d5 {[%clk 0:02:59]} 4. Nc3 {[%clk 0:03:00]}  Bb4 {[%clk 0:02:58]} 5. Qa4+ {[%clk 0:02:57]}  Nc6 {[%clk 0:02:58]} 6. Bg5 {[%clk 0:02:58]}  dxc4 {[%clk 0:02:55]} 7. e3 {[%clk 0:02:56]}  Bd7 {[%clk 0:02:55]} 8. Qc2 {[%clk 0:02:52]}  b5 {[%clk 0:02:52]} 9. Be2 {[%clk 0:02:52]}  a6 {[%clk 0:02:45]} 10. O-O {[%clk 0:02:52]}  O-O {[%clk 0:02:38]} 11. e4 {[%clk 0:02:52]}  h6 {[%clk 0:02:31]} 12. Bxf6 {[%clk 0:02:32]}  Qxf6 {[%clk 0:02:30]} 13. e5 {[%clk 0:02:32]}  Qd8 {[%clk 0:02:05]} 14. Rad1 {[%clk 0:02:29]}  Be7 {[%clk 0:02:02]} 15. b3 {[%clk 0:02:15]}  Nb4 {[%clk 0:01:54]} 16. Qb1 {[%clk 0:02:14]}  cxb3 {[%clk 0:01:54]} 17. d5 {[%clk 0:02:00]}  bxa2 {[%clk 0:01:43]} 18. Qb2 {[%clk 0:01:57]}  exd5 {[%clk 0:01:40]} 19. Nxd5 {[%clk 0:01:55]}  Nxd5 {[%clk 0:01:40]} 20. Rxd5 {[%clk 0:01:55]}  Qc8 {[%clk 0:01:39]} 21. Nd4 {[%clk 0:01:43]}  c5 {[%clk 0:01:39]} 22. Nb3 {[%clk 0:01:40]}  Be6 {[%clk 0:01:24]} 23. Rdd1 {[%clk 0:01:40]}  Qc7 {[%clk 0:01:19]} 24. f4 {[%clk 0:01:36]}  Rfd8 {[%clk 0:01:05]} 25. Rc1 {[%clk 0:01:25]}  c4 {[%clk 0:01:02]} 26. f5 {[%clk 0:01:17]}  Qb6+ {[%clk 0:01:00]} 27. Kh1 {[%clk 0:01:16]}  cxb3 {[%clk 0:00:51]} 28. fxe6 {[%clk 0:01:17]}  Qxe6 {[%clk 0:00:52]} 29. Bh5 {[%clk 0:01:08]}  g6 {[%clk 0:00:49]} 30. Bd1 {[%clk 0:01:08]}  Bg5 {[%clk 0:00:37]} 31. Bxb3 {[%clk 0:00:59]}  Bxc1 {[%clk 0:00:36]} 32. Rxc1 {[%clk 0:00:58]}  Qe7 {[%clk 0:00:33]} 33. Qxa2 {[%clk 0:00:58]}  Kg7 {[%clk 0:00:28]} 34. Rf1 {[%clk 0:00:57]}  Rf8 {[%clk 0:00:28]} 35. Bd5 {[%clk 0:00:57]}  Rad8 {[%clk 0:00:26]} 36. e6 {[%clk 0:00:49]}  fxe6 {[%clk 0:00:25]} 37. Qa1+ {[%clk 0:00:39]}  Kh7 {[%clk 0:00:23]} 38. Rxf8 {[%clk 0:00:35]}  Rxf8 {[%clk 0:00:20]} 39. Be4 {[%clk 0:00:36]}  Qf6 {[%clk 0:00:18]} 0-1


[Site "https://www.chess.com"]

[Event "Early Titled Tuesday Blitz | February 8 2022"]
[White "Seo, Jung Min"]
[Black "Nesterov, Arseniy"]
[WhiteFideId "1734687"]
[BlackFideId "24198455"]
[WhiteElo "2401"]
[BlackElo "2489"]
[Result "1-0"]
[Round "04"]
[TimeControl "180+1"]
[Date "2022.02.08"]
[WhiteClock "0:00:08"]
[BlackClock "0:00:02"]

1. d4 {[%clk 0:03:00]}  d5 {[%clk 0:02:59]} 2. c4 {[%clk 0:03:01]}  e6 {[%clk 0:02:57]} 3. Nf3 {[%clk 0:03:01]}  Nf6 {[%clk 0:02:56]} 4. Nc3 {[%clk 0:03:01]}  Nbd7 {[%clk 0:02:49]} 5. cxd5 {[%clk 0:03:00]}  exd5 {[%clk 0:02:48]} 6. Bg5 {[%clk 0:03:00]}  Be7 {[%clk 0:02:48]} 7. e3 {[%clk 0:03:00]}  O-O {[%clk 0:02:48]} 8. Bd3 {[%clk 0:02:59]}  h6 {[%clk 0:02:47]} 9. Bh4 {[%clk 0:02:58]}  c6 {[%clk 0:02:46]} 10. Qc2 {[%clk 0:02:58]}  Re8 {[%clk 0:02:46]} 11. O-O {[%clk 0:02:58]}  Ne4 {[%clk 0:02:46]} 12. Bxe7 {[%clk 0:02:53]}  Qxe7 {[%clk 0:02:47]} 13. Rfe1 {[%clk 0:02:53]}  Ndf6 {[%clk 0:02:25]} 14. Ne5 {[%clk 0:02:52]}  Bf5 {[%clk 0:01:57]} 15. f3 {[%clk 0:02:36]}  Nxc3 {[%clk 0:01:57]} 16. bxc3 {[%clk 0:02:36]}  Bxd3 {[%clk 0:01:52]} 17. Qxd3 {[%clk 0:02:36]}  Nd7 {[%clk 0:01:51]} 18. Nxd7 {[%clk 0:02:36]}  Qxd7 {[%clk 0:01:52]} 19. e4 {[%clk 0:02:33]}  dxe4 {[%clk 0:01:52]} 20. fxe4 {[%clk 0:02:33]}  Re6 {[%clk 0:01:46]} 21. Re3 {[%clk 0:02:29]}  Rae8 {[%clk 0:01:42]} 22. Rae1 {[%clk 0:02:29]}  b5 {[%clk 0:01:35]} 23. h3 {[%clk 0:02:26]}  a6 {[%clk 0:01:34]} 24. R1e2 {[%clk 0:02:23]}  Qd6 {[%clk 0:01:32]} 25. Re1 {[%clk 0:02:18]}  Rd8 {[%clk 0:01:23]} 26. Qc2 {[%clk 0:02:13]}  b4 {[%clk 0:01:17]} 27. Rd1 {[%clk 0:02:10]}  bxc3 {[%clk 0:01:10]} 28. Qxc3 {[%clk 0:02:09]}  Qf4 {[%clk 0:00:56]} 29. Rf1 {[%clk 0:02:05]}  Qd6 {[%clk 0:00:54]} 30. Rd1 {[%clk 0:02:03]}  Qe7 {[%clk 0:00:45]} 31. Rde1 {[%clk 0:01:57]}  Red6 {[%clk 0:00:39]} 32. Rd3 {[%clk 0:01:55]}  Qh4 {[%clk 0:00:34]} 33. Ree3 {[%clk 0:01:50]}  Qf4 {[%clk 0:00:30]} 34. Qd2 {[%clk 0:01:43]}  Kh8 {[%clk 0:00:23]} 35. Qc3 {[%clk 0:01:41]}  f6 {[%clk 0:00:21]} 36. Qd2 {[%clk 0:01:38]}  Qh4 {[%clk 0:00:19]} 37. Kh2 {[%clk 0:01:36]}  Qg5 {[%clk 0:00:17]} 38. g3 {[%clk 0:01:34]}  Qb5 {[%clk 0:00:17]} 39. Qc3 {[%clk 0:01:29]}  Qa4 {[%clk 0:00:14]} 40. e5 {[%clk 0:01:21]}  fxe5 {[%clk 0:00:10]} 41. Rxe5 {[%clk 0:01:16]}  Rxd4 {[%clk 0:00:08]} 42. Rxd4 {[%clk 0:01:13]}  Rxd4 {[%clk 0:00:06]} 43. Re2 {[%clk 0:01:13]}  Qc4 {[%clk 0:00:05]} 44. Qe3 {[%clk 0:01:07]}  Qd5 {[%clk 0:00:03]} 45. Qa3 {[%clk 0:01:00]}  Rd2 {[%clk 0:00:03]} 46. Rxd2 {[%clk 0:00:59]}  Qxd2+ {[%clk 0:00:04]} 47. Kg1 {[%clk 0:01:00]}  Qe1+ {[%clk 0:00:04]} 48. Kg2 {[%clk 0:01:00]}  Qe2+ {[%clk 0:00:05]} 49. Kg1 {[%clk 0:01:00]}  Qc4 {[%clk 0:00:04]} 50. Qa5 {[%clk 0:01:00]}  Qc1+ {[%clk 0:00:03]} 51. Kf2 {[%clk 0:00:59]}  Qc2+ {[%clk 0:00:04]} 52. Kf3 {[%clk 0:00:59]}  Qc4 {[%clk 0:00:04]} 53. a4 {[%clk 0:00:57]}  Kg8 {[%clk 0:00:03]} 54. Qd8+ {[%clk 0:00:56]}  Kf7 {[%clk 0:00:03]} 55. Qc7+ {[%clk 0:00:53]}  Kf6 {[%clk 0:00:03]} 56. Qd6+ {[%clk 0:00:49]}  Qe6 {[%clk 0:00:03]} 57. Qd8+ {[%clk 0:00:46]}  Kg6 {[%clk 0:00:03]} 58. Qb6 {[%clk 0:00:42]}  Qd5+ {[%clk 0:00:03]} 59. Kf2 {[%clk 0:00:42]}  a5 {[%clk 0:00:03]} 60. Qb2 {[%clk 0:00:26]}  Qf5+ {[%clk 0:00:02]} 61. Kg2 {[%clk 0:00:25]}  Qe4+ {[%clk 0:00:02]} 62. Kh2 {[%clk 0:00:25]}  Qd5 {[%clk 0:00:02]} 63. Qc2+ {[%clk 0:00:24]}  Kf6 {[%clk 0:00:02]} 64. Qc3+ {[%clk 0:00:23]}  Kf7 {[%clk 0:00:03]} 65. Qc2 {[%clk 0:00:22]}  Ke6 {[%clk 0:00:02]} 66. h4 {[%clk 0:00:22]}  Ke5 {[%clk 0:00:02]} 67. Qc3+ {[%clk 0:00:22]}  Ke4 {[%clk 0:00:02]} 68. Qxg7 {[%clk 0:00:22]}  Qd2+ {[%clk 0:00:02]} 69. Kh3 {[%clk 0:00:22]}  c5 {[%clk 0:00:01]} 70. Qg6+ {[%clk 0:00:21]}  Kd4 {[%clk 0:00:02]} 71. g4 {[%clk 0:00:20]}  Qd3+ {[%clk 0:00:02]} 72. Qxd3+ {[%clk 0:00:20]}  Kxd3 {[%clk 0:00:03]} 73. g5 {[%clk 0:00:20]}  c4 {[%clk 0:00:02]} 74. gxh6 {[%clk 0:00:19]}  c3 {[%clk 0:00:03]} 75. h7 {[%clk 0:00:19]}  c2 {[%clk 0:00:03]} 76. h8=Q {[%clk 0:00:20]}  c1=Q {[%clk 0:00:04]} 77. Qd8+ {[%clk 0:00:19]}  Ke4 {[%clk 0:00:04]} 78. Qxa5 {[%clk 0:00:15]}  Qe3+ {[%clk 0:00:04]} 79. Kg4 {[%clk 0:00:14]}  Qf4+ {[%clk 0:00:03]} 80. Kh5 {[%clk 0:00:13]}  Qf7+ {[%clk 0:00:03]} 81. Kh6 {[%clk 0:00:10]}  Qf6+ {[%clk 0:00:04]} 82. Kh5 {[%clk 0:00:08]}  Qf7+ {[%clk 0:00:04]} 83. Kg4 {[%clk 0:00:07]}  Qf3+ {[%clk 0:00:03]} 84. Kg5 {[%clk 0:00:07]}  Qg3+ {[%clk 0:00:03]} 85. Kf6 {[%clk 0:00:06]}  Qxh4+ {[%clk 0:00:03]} 86. Ke6 {[%clk 0:00:06]}  Qh6+ {[%clk 0:00:03]} 87. Kd7 {[%clk 0:00:06]}  Qg7+ {[%clk 0:00:03]} 88. Kc6 {[%clk 0:00:06]}  Qg6+ {[%clk 0:00:03]} 89. Kb5 {[%clk 0:00:06]}  Qf5+ {[%clk 0:00:02]} 90. Ka6 {[%clk 0:00:06]}  Qe6+ {[%clk 0:00:02]} 91. Qb6 {[%clk 0:00:07]}  Qc8+ {[%clk 0:00:03]} 92. Ka5 {[%clk 0:00:06]}  Qa8+ {[%clk 0:00:02]} 93. Kb5 {[%clk 0:00:07]}  Qe8+ {[%clk 0:00:02]} 94. Qc6+ {[%clk 0:00:07]}  Qxc6+ {[%clk 0:00:02]} 95. Kxc6 {[%clk 0:00:08]} 1-0


[Site "https://www.chess.com"]

[Event "Early Titled Tuesday Blitz | February 8 2022"]
[White "Sharavdorj, Dashzegve"]
[Black "Dounis, Alexandros"]
[WhiteFideId "4900340"]
[BlackFideId "4213238"]
[WhiteElo "2366"]
[BlackElo "2195"]
[Result "0-1"]
[Round "04"]
[TimeControl "180+1"]
[Date "2022.02.08"]
[WhiteClock "0:00:59"]
[BlackClock "0:00:10"]

1. d4 {[%clk 0:03:00]}  Nf6 {[%clk 0:02:59]} 2. c4 {[%clk 0:03:00]}  g6 {[%clk 0:02:59]} 3. Nc3 {[%clk 0:03:00]}  d5 {[%clk 0:02:59]} 4. cxd5 {[%clk 0:02:59]}  Nxd5 {[%clk 0:03:00]} 5. e4 {[%clk 0:03:00]}  Nxc3 {[%clk 0:03:01]} 6. bxc3 {[%clk 0:03:00]}  Bg7 {[%clk 0:03:01]} 7. Nf3 {[%clk 0:03:00]}  c5 {[%clk 0:03:02]} 8. Rb1 {[%clk 0:03:00]}  O-O {[%clk 0:03:02]} 9. Be2 {[%clk 0:03:00]}  b6 {[%clk 0:03:02]} 10. O-O {[%clk 0:02:59]}  Bb7 {[%clk 0:03:02]} 11. Qd3 {[%clk 0:03:00]}  e6 {[%clk 0:03:02]} 12. Bg5 {[%clk 0:02:59]}  Qc7 {[%clk 0:03:02]} 13. Qe3 {[%clk 0:02:59]}  Nd7 {[%clk 0:02:55]} 14. e5 {[%clk 0:02:59]}  Rae8 {[%clk 0:02:53]} 15. h4 {[%clk 0:02:55]}  f6 {[%clk 0:02:51]} 16. exf6 {[%clk 0:02:54]}  Nxf6 {[%clk 0:02:51]} 17. Ne5 {[%clk 0:02:42]}  Nd5 {[%clk 0:02:47]} 18. Qg3 {[%clk 0:02:41]}  cxd4 {[%clk 0:02:31]} 19. cxd4 {[%clk 0:02:41]}  Qc3 {[%clk 0:02:31]} 20. Bd3 {[%clk 0:02:28]}  Qxd4 {[%clk 0:02:25]} 21. Nd7 {[%clk 0:02:23]}  Rf7 {[%clk 0:02:10]} 22. h5 {[%clk 0:02:20]}  Rxd7 {[%clk 0:02:05]} 23. hxg6 {[%clk 0:02:19]}  hxg6 {[%clk 0:02:03]} 24. Bxg6 {[%clk 0:02:18]}  Rf8 {[%clk 0:01:49]} 25. Rbd1 {[%clk 0:02:17]}  Nc3 {[%clk 0:01:04]} 26. Qh3 {[%clk 0:02:07]}  Ne2+ {[%clk 0:00:49]} 27. Kh1 {[%clk 0:02:04]}  Rxf2 {[%clk 0:00:44]} 28. Rxd4 {[%clk 0:01:59]}  Rxf1+ {[%clk 0:00:34]} 29. Kh2 {[%clk 0:01:58]}  Be5+ {[%clk 0:00:18]} 30. Bf4 {[%clk 0:01:54]}  Nxf4 {[%clk 0:00:18]} 31. Rxd7 {[%clk 0:01:22]}  Nxh3+ {[%clk 0:00:17]} 32. Kxh3 {[%clk 0:01:22]}  Bd5 {[%clk 0:00:14]} 33. Rxa7 {[%clk 0:01:19]}  Rf6 {[%clk 0:00:14]} 34. Bd3 {[%clk 0:01:19]}  Rf2 {[%clk 0:00:14]} 35. Bh7+ {[%clk 0:01:14]}  Kh8 {[%clk 0:00:14]} 36. Bd3 {[%clk 0:01:10]}  Rxg2 {[%clk 0:00:14]} 37. Kh4 {[%clk 0:01:09]}  Rh2+ {[%clk 0:00:13]} 38. Kg5 {[%clk 0:01:09]}  Rd2 {[%clk 0:00:12]} 39. Bg6 {[%clk 0:01:08]}  Rg2+ {[%clk 0:00:11]} 40. Kh5 {[%clk 0:01:05]}  Bf3+ {[%clk 0:00:11]} 41. Kh4 {[%clk 0:01:05]}  Rxg6 {[%clk 0:00:10]} 42. Rf7 {[%clk 0:01:03]}  Rh6+ {[%clk 0:00:09]} 43. Kg5 {[%clk 0:01:02]}  Rh5+ {[%clk 0:00:10]} 44. Kg6 {[%clk 0:01:02]}  Rf5 {[%clk 0:00:10]} 45. Rb7 {[%clk 0:01:00]}  Bh5+ {[%clk 0:00:10]} 46. Kh6 {[%clk 0:00:59]}  Bf4# {[%clk 0:00:10]} 0-1


[Site "https://www.chess.com"]

[Event "Early Titled Tuesday Blitz | February 8 2022"]
[White "Shimanov, Aleksandr"]
[Black "Budrewicz, Krzysztof"]
[WhiteFideId "4198603"]
[BlackFideId "1127950"]
[WhiteElo "2636"]
[BlackElo "2248"]
[Result "1-0"]
[Round "04"]
[TimeControl "180+1"]
[Date "2022.02.08"]
[WhiteClock "0:00:34"]
[BlackClock "0:00:04"]

1. e4 {[%clk 0:03:00]}  c5 {[%clk 0:02:55]} 2. Nf3 {[%clk 0:03:00]}  e6 {[%clk 0:02:55]} 3. c3 {[%clk 0:02:58]}  Nf6 {[%clk 0:02:52]} 4. Bd3 {[%clk 0:02:58]}  Nc6 {[%clk 0:02:50]} 5. O-O {[%clk 0:02:57]}  e5 {[%clk 0:02:49]} 6. Re1 {[%clk 0:02:52]}  Be7 {[%clk 0:02:49]} 7. Bc2 {[%clk 0:02:51]}  O-O {[%clk 0:02:49]} 8. d3 {[%clk 0:02:41]}  d6 {[%clk 0:02:48]} 9. Nbd2 {[%clk 0:02:40]}  h6 {[%clk 0:02:48]} 10. Nf1 {[%clk 0:02:40]}  b5 {[%clk 0:02:46]} 11. Ng3 {[%clk 0:02:40]}  a5 {[%clk 0:02:45]} 12. a4 {[%clk 0:02:38]}  b4 {[%clk 0:02:45]} 13. Bb3 {[%clk 0:02:36]}  Be6 {[%clk 0:02:43]} 14. Nd2 {[%clk 0:02:33]}  Qd7 {[%clk 0:02:43]} 15. Nc4 {[%clk 0:02:32]}  Rab8 {[%clk 0:02:41]} 16. h3 {[%clk 0:02:25]}  Bd8 {[%clk 0:02:33]} 17. Bd2 {[%clk 0:02:16]}  Ne7 {[%clk 0:02:33]} 18. Be3 {[%clk 0:02:08]}  Ng6 {[%clk 0:02:31]} 19. d4 {[%clk 0:02:05]}  bxc3 {[%clk 0:02:15]} 20. bxc3 {[%clk 0:02:04]}  cxd4 {[%clk 0:01:39]} 21. cxd4 {[%clk 0:02:02]}  Bxh3 {[%clk 0:01:31]} 22. dxe5 {[%clk 0:01:08]}  dxe5 {[%clk 0:01:29]} 23. Bc5 {[%clk 0:01:04]}  Re8 {[%clk 0:01:14]} 24. Nd6 {[%clk 0:01:01]}  Rf8 {[%clk 0:00:53]} 25. Ndf5 {[%clk 0:00:50]}  Qxd1 {[%clk 0:00:45]} 26. Bxd1 {[%clk 0:00:51]}  Bxf5 {[%clk 0:00:44]} 27. exf5 {[%clk 0:00:51]}  Ne7 {[%clk 0:00:42]} 28. Rxe5 {[%clk 0:00:52]}  Nc6 {[%clk 0:00:39]} 29. Re1 {[%clk 0:00:49]}  Re8 {[%clk 0:00:39]} 30. Rxe8+ {[%clk 0:00:48]}  Nxe8 {[%clk 0:00:40]} 31. Be2 {[%clk 0:00:45]}  Bb6 {[%clk 0:00:35]} 32. Rc1 {[%clk 0:00:41]}  Nf6 {[%clk 0:00:29]} 33. Bd6 {[%clk 0:00:37]}  Rc8 {[%clk 0:00:19]} 34. Ba6 {[%clk 0:00:36]}  Ra8 {[%clk 0:00:04]} 35. Bb7 {[%clk 0:00:36]}  Rd8 {[%clk 0:00:04]} 36. Rxc6 {[%clk 0:00:36]}  Ba7 {[%clk 0:00:04]} 37. Rc8 {[%clk 0:00:34]} 1-0


[Site "https://www.chess.com"]

[Event "Early Titled Tuesday Blitz | February 8 2022"]
[White "Shimelkov, Vasiliy"]
[Black "Zaichenko, Daria"]
[WhiteFideId "13701630"]
[BlackFideId "4197453"]
[WhiteElo "2073"]
[BlackElo "2039"]
[Result "1-0"]
[Round "04"]
[TimeControl "180+1"]
[Date "2022.02.08"]
[WhiteClock "0:00:45"]
[BlackClock "0:01:14"]

1. d4 {[%clk 0:03:00]}  d5 {[%clk 0:02:58]} 2. Nf3 {[%clk 0:03:00]}  Nf6 {[%clk 0:02:54]} 3. c4 {[%clk 0:02:59]}  e6 {[%clk 0:02:53]} 4. Nc3 {[%clk 0:02:59]}  Bd6 {[%clk 0:02:53]} 5. Bg5 {[%clk 0:02:58]}  c6 {[%clk 0:02:51]} 6. e3 {[%clk 0:02:56]}  h6 {[%clk 0:02:50]} 7. Bh4 {[%clk 0:02:55]}  Nbd7 {[%clk 0:02:50]} 8. Bd3 {[%clk 0:02:52]}  O-O {[%clk 0:02:49]} 9. O-O {[%clk 0:02:51]}  dxc4 {[%clk 0:02:49]} 10. Bxc4 {[%clk 0:02:50]}  Nb6 {[%clk 0:02:49]} 11. Bd3 {[%clk 0:02:51]}  c5 {[%clk 0:02:49]} 12. Ne4 {[%clk 0:02:43]}  Be7 {[%clk 0:02:43]} 13. dxc5 {[%clk 0:02:38]}  Nxe4 {[%clk 0:02:42]} 14. Bxe7 {[%clk 0:02:36]}  Qxe7 {[%clk 0:02:41]} 15. Bxe4 {[%clk 0:02:36]}  Qxc5 {[%clk 0:02:39]} 16. Rc1 {[%clk 0:02:37]}  Qe7 {[%clk 0:02:38]} 17. Ne5 {[%clk 0:02:34]}  Qf6 {[%clk 0:02:27]} 18. f4 {[%clk 0:02:16]}  Nd5 {[%clk 0:02:22]} 19. Qf3 {[%clk 0:02:12]}  b6 {[%clk 0:02:17]} 20. Rfd1 {[%clk 0:01:55]}  Rd8 {[%clk 0:02:13]} 21. Nc6 {[%clk 0:01:51]}  Rd6 {[%clk 0:02:08]} 22. Bxd5 {[%clk 0:01:44]}  exd5 {[%clk 0:02:06]} 23. Nd4 {[%clk 0:01:42]}  Ba6 {[%clk 0:02:01]} 24. Rc7 {[%clk 0:01:39]}  Qd8 {[%clk 0:01:49]} 25. Rdc1 {[%clk 0:01:33]}  Bc4 {[%clk 0:01:49]} 26. Rc6 {[%clk 0:01:33]}  Rxc6 {[%clk 0:01:44]} 27. Nxc6 {[%clk 0:01:32]}  Qd6 {[%clk 0:01:43]} 28. b3 {[%clk 0:01:27]}  Rc8 {[%clk 0:01:35]} 29. Nxa7 {[%clk 0:01:17]}  Ra8 {[%clk 0:01:32]} 30. bxc4 {[%clk 0:01:11]}  Rxa7 {[%clk 0:01:31]} 31. cxd5 {[%clk 0:01:11]}  Rxa2 {[%clk 0:01:28]} 32. e4 {[%clk 0:01:06]}  g6 {[%clk 0:01:25]} 33. Rc8+ {[%clk 0:00:55]}  Kg7 {[%clk 0:01:20]} 34. Qc3+ {[%clk 0:00:47]}  Qf6 {[%clk 0:01:15]} 35. Rg8+ {[%clk 0:00:46]}  Kxg8 {[%clk 0:01:14]} 36. Qxf6 {[%clk 0:00:45]} 1-0


[Site "https://www.chess.com"]

[Event "Early Titled Tuesday Blitz | February 8 2022"]
[White "Shukhman, Anna"]
[Black "Khamzin, Olzhas"]
[WhiteFideId "54180058"]
[BlackFideId "13701690"]
[WhiteElo "1628"]
[BlackElo "2194"]
[Result "0-1"]
[Round "04"]
[TimeControl "180+1"]
[Date "2022.02.08"]
[WhiteClock "0:00:02"]
[BlackClock "0:00:21"]

1. e4 {[%clk 0:03:00]}  e6 {[%clk 0:02:13]} 2. d4 {[%clk 0:02:58]}  d6 {[%clk 0:02:14]} 3. Nc3 {[%clk 0:02:57]}  Be7 {[%clk 0:02:12]} 4. Nf3 {[%clk 0:02:56]}  b6 {[%clk 0:02:11]} 5. Bd3 {[%clk 0:02:55]}  Bb7 {[%clk 0:02:12]} 6. O-O {[%clk 0:02:55]}  Nd7 {[%clk 0:02:13]} 7. e5 {[%clk 0:02:44]}  dxe5 {[%clk 0:02:12]} 8. dxe5 {[%clk 0:02:42]}  a6 {[%clk 0:02:09]} 9. Be4 {[%clk 0:02:38]}  Qc8 {[%clk 0:02:08]} 10. Re1 {[%clk 0:02:15]}  Nc5 {[%clk 0:02:00]} 11. Bxb7 {[%clk 0:02:14]}  Qxb7 {[%clk 0:02:01]} 12. b4 {[%clk 0:02:13]}  Nd7 {[%clk 0:01:57]} 13. a3 {[%clk 0:01:55]}  Nh6 {[%clk 0:01:54]} 14. Bxh6 {[%clk 0:01:54]}  gxh6 {[%clk 0:01:55]} 15. Qe2 {[%clk 0:01:51]}  Rg8 {[%clk 0:01:52]} 16. Qe4 {[%clk 0:01:42]}  Qxe4 {[%clk 0:01:48]} 17. Rxe4 {[%clk 0:01:36]}  h5 {[%clk 0:01:49]} 18. Nd4 {[%clk 0:01:31]}  Rg4 {[%clk 0:01:38]} 19. Nc6 {[%clk 0:01:20]}  Rxe4 {[%clk 0:01:34]} 20. Nxe4 {[%clk 0:01:20]}  a5 {[%clk 0:01:27]} 21. b5 {[%clk 0:01:20]}  a4 {[%clk 0:01:21]} 22. f4 {[%clk 0:01:01]}  Nc5 {[%clk 0:01:11]} 23. Nxe7 {[%clk 0:00:59]}  Nxe4 {[%clk 0:01:00]} 24. Nc6 {[%clk 0:00:59]}  Nc3 {[%clk 0:01:00]} 25. f5 {[%clk 0:00:40]}  Nxb5 {[%clk 0:00:50]} 26. c4 {[%clk 0:00:29]}  Na7 {[%clk 0:00:50]} 27. Nd4 {[%clk 0:00:27]}  c5 {[%clk 0:00:49]} 28. Nf3 {[%clk 0:00:24]}  exf5 {[%clk 0:00:44]} 29. Rb1 {[%clk 0:00:21]}  Rb8 {[%clk 0:00:44]} 30. Nh4 {[%clk 0:00:18]}  b5 {[%clk 0:00:42]} 31. Nxf5 {[%clk 0:00:17]}  b4 {[%clk 0:00:43]} 32. Nd6+ {[%clk 0:00:15]}  Kf8 {[%clk 0:00:42]} 33. Rf1 {[%clk 0:00:14]}  bxa3 {[%clk 0:00:35]} 34. Rxf7+ {[%clk 0:00:13]}  Kg8 {[%clk 0:00:35]} 35. Rxa7 {[%clk 0:00:06]}  a2 {[%clk 0:00:35]} 36. Rxa4 {[%clk 0:00:07]}  Rb1+ {[%clk 0:00:34]} 37. Kf2 {[%clk 0:00:07]}  a1=Q {[%clk 0:00:35]} 38. Rxa1 {[%clk 0:00:08]}  Rxa1 {[%clk 0:00:36]} 39. Ne4 {[%clk 0:00:08]}  Rc1 {[%clk 0:00:34]} 40. Nxc5 {[%clk 0:00:08]}  Rxc4 {[%clk 0:00:34]} 41. Nd3 {[%clk 0:00:08]}  Kf7 {[%clk 0:00:32]} 42. Kf3 {[%clk 0:00:08]}  Ke6 {[%clk 0:00:31]} 43. g3 {[%clk 0:00:08]}  Rc3 {[%clk 0:00:31]} 44. Ke4 {[%clk 0:00:08]}  Rc4+ {[%clk 0:00:29]} 45. Kf3 {[%clk 0:00:08]}  h4 {[%clk 0:00:29]} 46. g4 {[%clk 0:00:06]}  Kd5 {[%clk 0:00:24]} 47. Nf4+ {[%clk 0:00:04]}  Kxe5 {[%clk 0:00:23]} 48. Nh5 {[%clk 0:00:04]}  Rc3+ {[%clk 0:00:22]} 49. Kf2 {[%clk 0:00:04]}  Rc7 {[%clk 0:00:21]} 50. Kg2 {[%clk 0:00:04]}  Rc3 {[%clk 0:00:19]} 51. h3 {[%clk 0:00:03]}  Ke4 {[%clk 0:00:18]} 52. Kh2 {[%clk 0:00:04]}  Kf3 {[%clk 0:00:18]} 53. Ng7 {[%clk 0:00:03]}  Rc2+ {[%clk 0:00:19]} 54. Kg1 {[%clk 0:00:03]}  Kg3 {[%clk 0:00:20]} 55. Nh5+ {[%clk 0:00:02]}  Kxh3 {[%clk 0:00:20]} 56. Nf4+ {[%clk 0:00:03]}  Kxg4 {[%clk 0:00:20]} 57. Nh5 {[%clk 0:00:03]}  h3 {[%clk 0:00:20]} 58. Nf6+ {[%clk 0:00:02]}  Kf3 {[%clk 0:00:20]} 59. Nxh7 {[%clk 0:00:02]}  h2+ {[%clk 0:00:20]} 60. Kh1 {[%clk 0:00:02]}  Kg3 {[%clk 0:00:21]} 0-1


[Site "https://www.chess.com"]